fUSD/lending_fUSD_20240526
["ID","MTS","AMOUNT","RATE_DAILY","PERIOD"]
[327973330,1716732662126,-500.0,0.00027945,4]
[327973331,1716732662136,-1101.55,0.00027945,4]
[327973332,1716732662147,-623.77,0.00027945,4]
[327973333,1716732662157,-504.89,0.00027945,4]
[327973334,1716732662168,-570.33,0.00027945,4]
[327973335,1716732662178,-853.64,0.00027945,4]
[327973336,1716732662189,-500.0,0.00027945,4]
[327973337,1716732662200,-1592.22,0.00027945,4]
[327973338,1716732662211,-500.0,0.00027945,4]
[327973339,1716732662221,-1027.97,0.00027945,4]
[327973340,1716732662232,-1044.37,0.00027945,4]
[327973341,1716732662242,-500.0,0.00027945,4]
[327973342,1716732662253,-500.0,0.00027945,4]
[327973343,1716732662263,-1313.69,0.00027945,4]
[327973344,1716732662274,-624.18,0.00027945,4]
[327973345,1716732662285,-500.0,0.00027945,4]
[327973346,1716732662296,-1190.26,0.00027945,4]
[327973347,1716732662307,-4137.91,0.00027945,4]
[327973348,1716732662318,-1036.79,0.00027945,4]
[327973349,1716732662329,-500.0,0.00027945,4]
[327973350,1716732662340,-850.51,0.00027945,4]
[327973351,1716732662351,-500.0,0.00027945,4]
[327973352,1716732662361,-916.61,0.00027945,4]
[327973353,1716732662372,-1474.98,0.00027945,4]
[327973354,1716732662383,-707.12,0.00027945,4]
[327973355,1716732662394,-500.0,0.00027945,4]
[327973356,1716732662405,-500.0,0.00027945,4]
[327973357,1716732662421,-2412.83,0.00027945,4]
[327973358,1716732662431,-500.0,0.00027945,4]
[327973359,1716732662443,-500.0,0.00027945,4]
[327973360,1716732662454,-500.0,0.00027945,4]
[327973361,1716732662469,-687.58,0.00027945,4]
[327973362,1716732662480,-1038.84,0.00027945,4]
[327973363,1716732662491,-500.0,0.00027945,2]
[327973364,1716732662504,-500.0,0.00027945,4]
[327973365,1716732662515,-500.0,0.00027945,4]
[327973366,1716732662525,-654.73,0.00027945,4]
[327973367,1716732662537,-928.91,0.00027945,4]
[327973368,1716732662548,-500.0,0.00027945,4]
[327973369,1716732662558,-592.19,0.00027945,4]
[327973370,1716732662569,-502.52,0.00027945,4]
[327973371,1716732662581,-500.0,0.00027945,4]
[327973372,1716732662591,-500.0,0.00027945,4]
[327973373,1716732662603,-500.0,0.00027945,4]
[327973374,1716732662614,-1244.5,0.00027945,4]
[327973375,1716732662625,-827.03,0.00027945,4]
[327973376,1716732662636,-586.69,0.00027945,4]
[327973377,1716732662647,-901.87,0.00027945,4]
[327973378,1716732662659,-793.2,0.00027945,4]
[327973379,1716732662669,-501.48,0.00027945,4]
[327973380,1716732662679,-709.61,0.00027945,4]
[327973381,1716732662690,-500.0,0.00027945,4]
[327973382,1716732662701,-613.0,0.00027985,2]
[327973383,1716732662713,-440.0,0.00027985,2]
[327973384,1716732662724,-1267.24,0.00027985,2]
[327973385,1716732662735,-214.0,0.00027985,2]
[327973386,1716732662747,-466.0,0.00027985,2]
[327973387,1716732662759,-1707.477,0.00027985,2]
[327973388,1716732662771,-2000.0,0.00028,2]
[327973389,1716732662783,-160.68668,0.00028,2]
[327973390,1716732662794,-200.0,0.00028,2]
[327973391,1716732662805,-2964.82335599,0.00028,30]
[327973392,1716732662816,-502.74851032,0.00028,2]
[327973393,1716732662826,-159.77442624,0.00028004,2]
[327973394,1716732662838,-157.86209062,0.00028013,2]
[327973395,1716732662849,-551.197367,0.00028067,2]
[327973396,1716732662860,-420.524747,0.00028067,2]
[327973397,1716732662871,-236.330708,0.00028067,2]
[327973398,1716732662882,-157.54884506,0.00028103,2]
[327973399,1716732662893,-150.0,0.0002816,2]
[327973400,1716732662905,-168.886399,0.00028182,2]
[327973401,1716732662917,-300.0,0.000282,2]
[327973402,1716732662928,-8398.66,0.00028203,2]
[327973403,1716732662939,-19999.99,0.00028203,2]
[327973404,1716732662951,-500.0,0.00028219,4]
[327973405,1716732662962,-500.0,0.00028219,4]
[327973406,1716732662972,-500.0,0.00028219,4]
[327973407,1716732662983,-500.0,0.00028219,4]
[327973408,1716732662994,-500.0,0.00028219,4]
[327973409,1716732663005,-500.0,0.00028219,4]
[327973410,1716732663016,-867.51,0.00028219,4]
[327973411,1716732663028,-500.0,0.00028219,4]
[327973412,1716732663039,-500.0,0.00028219,4]
[327973413,1716732663050,-500.0,0.00028219,4]
[327973414,1716732663060,-500.0,0.00028219,4]
[327973415,1716732663071,-500.0,0.00028219,2]
[327973416,1716732663082,-500.0,0.00028219,2]
[327973417,1716732663093,-500.0,0.00028219,2]
[327973418,1716732663105,-500.0,0.00028219,4]
[327973419,1716732663115,-500.0,0.00028219,2]
[327973420,1716732663126,-500.0,0.00028219,2]
[327973421,1716732663137,-500.0,0.00028219,2]
[327973422,1716732663147,-500.0,0.00028219,2]
[327973423,1716732663159,-151.0,0.00028219,7]
[327973424,1716732663171,-500.0,0.00028219,2]
[327973425,1716732663182,-500.0,0.00028219,2]
[327973426,1716732663192,-500.0,0.00028219,2]
[327973427,1716732663203,-296.908343,0.00028219,7]
[327973428,1716732663214,-500.0,0.00028219,4]
[327973429,1716732663225,-613.37,0.00028219,4]
[327973430,1716732663235,-500.0,0.00028219,4]
[327973431,1716732663246,-500.0,0.00028219,4]
[327973432,1716732663257,-689.25,0.00028219,4]
[327973433,1716732663268,-912.17,0.00028219,4]
[327973434,1716732663280,-436.93800718,0.00028219,4]
[327973435,1716732663290,-500.0,0.00028219,4]
[327973436,1716732663301,-500.0,0.00028219,4]
[327973437,1716732663312,-577.1,0.00028219,4]
[327973438,1716732663322,-500.0,0.00028219,4]
[327973439,1716732663333,-500.0,0.00028219,4]
[327973440,1716732663344,-500.0,0.00028219,4]
[327973441,1716732663354,-500.0,0.00028219,4]
[327973442,1716732663366,-3083.08,0.00028219,4]
[327973443,1716732663376,-500.0,0.00028219,4]
[327973444,1716732663387,-500.0,0.00028219,4]
[327973445,1716732663398,-691.79,0.00028219,4]
[327973446,1716732663408,-500.0,0.00028219,4]
[327973447,1716732663420,-500.0,0.00028219,4]
[327973448,1716732663431,-500.0,0.00028219,4]
[327973449,1716732663442,-1003.57,0.00028219,4]
[327973450,1716732663453,-151.0,0.00028219,7]
[327973451,1716732663469,-702.93,0.00028219,4]
[327973452,1716732663480,-500.0,0.00028219,4]
[327973453,1716732663491,-151.0,0.00028219,7]
[327973454,1716732663504,-500.0,0.00028219,4]
[327973455,1716732663515,-500.0,0.00028219,4]
[327973456,1716732663527,-500.0,0.00028219,4]
[327973457,1716732663539,-900.58,0.00028219,4]
[327973458,1716732663551,-500.0,0.00028219,4]
[327973459,1716732663562,-891.34,0.00028219,4]
[327973460,1716732663574,-838.16,0.00028219,2]
[327973461,1716732663585,-500.0,0.00028219,4]
[327973462,1716732663596,-500.0,0.00028219,4]
[327973463,1716732663606,-500.0,0.00028219,2]
[327973464,1716732663618,-615.98,0.00028219,4]
[327973465,1716732663629,-576.75,0.00028219,4]
[327973466,1716732663640,-500.0,0.00028219,4]
[327973467,1716732663652,-767.17,0.00028219,4]
[327973468,1716732663664,-500.0,0.00028219,4]
[327973469,1716732663675,-500.0,0.00028219,4]
[327973470,1716732663687,-500.0,0.00028219,4]
[327973471,1716732663699,-500.0,0.00028219,4]
[327973472,1716732663711,-633.88,0.00028219,4]
[327973473,1716732663724,-500.0,0.00028219,4]
[327973474,1716732663735,-500.0,0.00028219,4]
[327973475,1716732663749,-758.6,0.00028219,4]
[327973476,1716732663760,-1363.1,0.00028219,4]
[327973477,1716732663773,-500.0,0.00028219,4]
[327973478,1716732663785,-500.0,0.00028219,4]
[327973479,1716732663797,-500.0,0.00028219,4]
[327973480,1716732663808,-535.29,0.00028219,4]
[327973481,1716732663819,-500.0,0.00028219,4]
[327973482,1716732663831,-500.0,0.00028219,4]
[327973483,1716732663843,-500.0,0.00028219,4]
[327973485,1716732663855,-366.86496737,0.00028219,4]
[327973486,1716732663867,-596.76,0.00028219,4]
[327973487,1716732663878,-500.0,0.00028219,4]
[327973488,1716732663888,-500.0,0.00028219,4]
[327973489,1716732663899,-151.0,0.00028219,7]
[327973490,1716732663911,-500.0,0.00028219,4]
[327973491,1716732663920,-500.0,0.00028219,4]
[327973492,1716732663930,-500.0,0.00028219,4]
[327973493,1716732663940,-500.0,0.00028219,4]
[327973494,1716732664310,-500.0,0.00028219,4]
[327973495,1716732664332,-500.0,0.00028219,4]
[327973496,1716732664359,-500.0,0.00028219,4]
[327973497,1716732664375,-500.0,0.00028219,4]
[327973498,1716732664384,-500.0,0.00028219,4]
[327973499,1716732664394,-500.0,0.00028219,4]
[327973500,1716732664403,-638.58,0.00028219,4]
[327973501,1716732664414,-500.0,0.00028219,4]
[327973502,1716732664423,-500.0,0.00028219,4]
[327973503,1716732664433,-500.0,0.00028219,4]
[327973504,1716732664442,-500.0,0.00028219,4]
[327973505,1716732664451,-500.0,0.00028219,4]
[327973506,1716732664465,-500.0,0.00028219,4]
[327973507,1716732664474,-813.06,0.00028219,4]
[327973508,1716732664484,-676.35,0.00028219,4]
[327973509,1716732664493,-500.0,0.00028219,4]
[327973510,1716732664504,-1206.79,0.00028219,4]
[327973511,1716732664514,-500.0,0.00028219,4]
[327973512,1716732664523,-500.0,0.00028219,4]
[327973513,1716732664537,-500.0,0.00028219,4]
[327973514,1716732664547,-500.0,0.00028219,4]
[327973515,1716732664556,-758.9,0.00028219,4]
[327973516,1716732664566,-500.0,0.00028219,4]
[327973517,1716732664575,-500.0,0.00028219,4]
[327973518,1716732664584,-500.0,0.00028219,4]
[327973519,1716732664595,-500.0,0.00028219,4]
[327973520,1716732664604,-500.0,0.00028219,4]
[327973521,1716732664614,-500.0,0.00028219,4]
[327973522,1716732664623,-500.0,0.00028219,4]
[327973523,1716732664633,-544.35,0.00028219,2]
[327973524,1716732664642,-500.0,0.00028219,4]
[327973525,1716732664652,-500.0,0.00028219,4]
[327973526,1716732664664,-500.0,0.00028219,4]
[327973527,1716732664673,-500.0,0.00028219,4]
[327973528,1716732664682,-500.0,0.00028219,4]
[327973529,1716732664691,-500.0,0.00028219,4]
[327973530,1716732664701,-364.40803632,0.00028219,4]
[327973531,1716732664710,-500.0,0.00028219,4]
[327973532,1716732664719,-151.0,0.00028219,7]
[327973533,1716732664728,-607.01,0.00028219,4]
[327973534,1716732664737,-500.0,0.00028219,4]
[327973535,1716732664747,-500.0,0.00028219,4]
[327973536,1716732664756,-869.48,0.00028219,4]
[327973537,1716732664765,-500.0,0.00028219,4]
[327973538,1716732664774,-500.0,0.00028219,4]
[327973539,1716732664783,-598.19,0.00028219,4]
[327973540,1716732664792,-500.0,0.00028219,4]
[327973541,1716732664801,-500.0,0.00028219,4]
[327973542,1716732664810,-500.0,0.00028219,4]
[327973543,1716732664820,-500.0,0.00028219,4]
[327973544,1716732664830,-501.39,0.00028219,4]
[327973545,1716732664839,-565.06,0.00028219,4]
[327973546,1716732664848,-500.0,0.00028219,4]
[327973547,1716732664858,-536.08,0.00028219,4]
[327973548,1716732664868,-378.7634773,0.00028219,4]
[327973549,1716732664878,-500.0,0.00028219,4]
[327973550,1716732664887,-500.0,0.00028219,4]
[327973551,1716732664897,-500.0,0.00028219,4]
[327973552,1716732664907,-247.51426309,0.00028219,4]
[327973553,1716732664919,-500.0,0.00028219,4]
[327973554,1716732664932,-500.0,0.00028219,4]
[327973555,1716732664941,-500.0,0.00028219,4]
[327973556,1716732664951,-172.8175445,0.00028219,4]
[327973557,1716732664961,-500.0,0.00028219,4]
[327973558,1716732664970,-500.0,0.00028219,4]
[327973559,1716732664979,-500.0,0.00028219,4]
[327973560,1716732664989,-500.0,0.00028219,4]
[327973561,1716732664999,-500.0,0.00028219,4]
[327973562,1716732665009,-500.0,0.00028219,4]
[327973563,1716732665018,-500.0,0.00028219,4]
[327973564,1716732665028,-500.0,0.00028219,4]
[327973565,1716732665038,-500.0,0.00028219,4]
[327973566,1716732665047,-500.0,0.00028219,4]
[327973567,1716732665057,-500.0,0.00028219,4]
[327973568,1716732665067,-500.0,0.00028219,4]
[327973569,1716732665077,-500.0,0.00028219,4]
[327973570,1716732665087,-500.0,0.00028219,4]
[327973571,1716732665096,-575.01,0.00028219,4]
[327973572,1716732665106,-500.0,0.00028219,4]
[327973573,1716732665116,-500.0,0.00028219,4]
[327973574,1716732665125,-500.0,0.00028219,4]
[327973575,1716732665135,-151.0,0.00028219,7]
[327973576,1716732665144,-500.0,0.00028219,4]
[327973577,1716732665154,-500.0,0.00028219,4]
[327973578,1716732665166,-179.19,0.00028219,4]
[327973579,1716732665175,-664.28,0.00028219,4]
[327973580,1716732665184,-500.0,0.00028219,4]
[327973581,1716732665193,-193.036136,0.00028219,7]
[327973582,1716732665204,-500.0,0.00028219,4]
[327973583,1716732665214,-193.036136,0.00028219,7]
[327973584,1716732665224,-500.0,0.00028219,4]
[327973585,1716732665233,-500.0,0.00028219,4]
[327973586,1716732665243,-500.0,0.00028219,4]
[327973587,1716732665252,-1420.49,0.00028219,4]
[327973588,1716732665262,-500.0,0.00028219,4]
[327973589,1716732665271,-387.12791409,0.00028219,4]
[327973590,1716732665281,-500.0,0.00028219,4]
[327973591,1716732665290,-500.0,0.00028219,4]
[327973592,1716732665300,-500.0,0.00028219,4]
[327973593,1716732665309,-500.0,0.00028219,4]
[327973594,1716732665318,-911.95,0.00028219,4]
[327973595,1716732665328,-876.64,0.00028219,4]
[327973596,1716732665337,-532.91,0.00028219,4]
[327973597,1716732665347,-372.83704746,0.00028219,4]
[327973598,1716732665357,-845.02,0.00028219,4]
[327973599,1716732665367,-500.0,0.00028219,4]
[327973600,1716732665376,-500.0,0.00028219,2]
[327973601,1716732665386,-500.0,0.00028219,2]
[327973602,1716732665395,-500.0,0.00028219,2]
[327973603,1716732665405,-500.0,0.00028219,2]
[327973604,1716732665415,-1217.15,0.00028219,4]
[327973605,1716732665425,-500.0,0.00028219,2]
[327973606,1716732665434,-500.0,0.00028219,4]
[327973607,1716732665444,-151.0,0.00028219,7]
[327973608,1716732665454,-500.0,0.00028219,4]
[327973609,1716732665468,-500.0,0.00028219,4]
[327973610,1716732665478,-500.0,0.00028219,4]
[327973611,1716732665487,-500.0,0.00028219,4]
[327973612,1716732665497,-1573.33,0.00028219,4]
[327973613,1716732665508,-500.0,0.00028219,4]
[327973614,1716732665517,-151.0,0.00028219,7]
[327973615,1716732665526,-1943.35,0.00028219,4]
[327973616,1716732665535,-647.0,0.00028219,4]
[327973617,1716732665545,-500.0,0.00028219,4]
[327973618,1716732665554,-827.18,0.00028219,4]
[327973619,1716732665563,-525.9,0.00028219,4]
[327973620,1716732665573,-1647.19,0.00028219,4]
[327973621,1716732665583,-812.79,0.00028219,4]
[327973622,1716732665593,-500.0,0.00028219,4]
[327973623,1716732665602,-656.92,0.00028219,4]
[327973624,1716732665611,-1479.16,0.00028219,4]
[327973625,1716732665621,-500.0,0.00028219,4]
[327973626,1716732665630,-219.597814,0.00028219,7]
[327973627,1716732665640,-859.25,0.00028219,4]
[327973628,1716732665649,-597.68061349,0.00028219,4]
[327973629,1716732665658,-500.0,0.00028219,4]
[327973630,1716732665670,-705.7,0.00028219,4]
[327973631,1716732665680,-500.0,0.00028219,4]
[327973632,1716732665690,-524.26,0.00028219,4]
[327973633,1716732665700,-852.83,0.00028219,4]
[327973634,1716732665710,-792.18,0.00028219,4]
[327973635,1716732665719,-9047.47,0.00028219,4]
[327973636,1716732665728,-2563.75,0.00028219,4]
[327973637,1716732665738,-500.0,0.00028219,4]
[327973638,1716732665747,-500.0,0.00028219,4]
[327973639,1716732665756,-543.61,0.00028219,4]
[327973640,1716732665766,-657.54,0.00028219,4]
[327973641,1716732665776,-937.7,0.00028219,4]
[327973642,1716732665785,-1533.52,0.00028219,4]
[327973643,1716732665794,-782.0,0.00028219,4]
[327973644,1716732665804,-1870.6,0.00028219,4]
[327973645,1716732665813,-500.0,0.00028219,4]
[327973646,1716732665822,-523.58,0.00028219,4]
[327973647,1716732665832,-500.0,0.00028219,4]
[327973648,1716732665842,-611.87,0.00028219,4]
[327973649,1716732665851,-662.47,0.00028219,4]
[327973650,1716732665861,-709.98,0.00028219,4]
[327973651,1716732665870,-500.0,0.00028219,4]
[327973652,1716732665879,-500.0,0.00028219,4]
[327973653,1716732665889,-500.0,0.00028219,4]
[327973654,1716732665898,-739.81,0.00028219,4]
[327973655,1716732665907,-151.0,0.00028219,7]
[327973656,1716732665919,-6199.76,0.00028219,4]
[327973657,1716732665928,-151.0,0.00028219,7]
[327973658,1716732665937,-500.0,0.00028219,4]
[327973659,1716732665946,-724.86,0.00028219,4]
[327973660,1716732665955,-1320.63,0.00028219,4]
[327973661,1716732665964,-500.0,0.00028219,4]
[327973662,1716732665974,-500.0,0.00028219,4]
[327973663,1716732665983,-500.0,0.00028219,4]
[327973664,1716732665991,-852.95,0.00028219,4]
[327973665,1716732666001,-500.0,0.00028219,4]
[327973666,1716732666010,-2564.82,0.00028219,4]
[327973667,1716732666019,-818.52,0.00028219,4]
[327973668,1716732666029,-595.39985628,0.00028219,4]
[327973669,1716732666039,-571.73,0.00028219,4]
[327973670,1716732666048,-2538.12,0.00028219,4]
[327973671,1716732666057,-500.0,0.00028219,4]
[327973672,1716732666067,-598.56,0.00028219,4]
[327973673,1716732666077,-500.0,0.00028219,4]
[327973674,1716732666087,-2937.07,0.00028219,4]
[327973675,1716732666096,-500.0,0.00028219,2]
[327973676,1716732666106,-500.0,0.00028219,2]
[327973677,1716732666115,-1041.17,0.00028219,4]
[327973678,1716732666126,-500.0,0.00028219,2]
[327973679,1716732666135,-500.0,0.00028219,2]
[327973680,1716732666144,-500.0,0.00028219,4]
[327973681,1716732666155,-500.0,0.00028219,2]
[327973682,1716732666166,-500.0,0.00028219,2]
[327973683,1716732666175,-500.0,0.00028219,2]
[327973684,1716732666184,-500.0,0.00028219,2]
[327973685,1716732666194,-500.0,0.00028219,4]
[327973686,1716732666204,-656.51,0.00028219,4]
[327973687,1716732666213,-500.0,0.00028219,4]
[327973688,1716732666223,-1310.5,0.00028219,4]
[327973689,1716732666232,-500.0,0.00028219,4]
[327973690,1716732666242,-552.73,0.00028219,4]
[327973691,1716732666252,-967.98,0.00028219,4]
[327973692,1716732666261,-500.0,0.00028219,2]
[327973693,1716732666270,-500.0,0.00028219,2]
[327973694,1716732666279,-500.0,0.00028219,4]
[327973695,1716732666289,-500.0,0.00028219,4]
[327973696,1716732666299,-233.108387,0.00028219,7]
[327973697,1716732666308,-1148.48,0.00028219,4]
[327973698,1716732666318,-795.96,0.00028219,4]
[327973699,1716732666327,-678.18,0.00028219,4]
[327973700,1716732666336,-500.0,0.00028219,4]
[327973701,1716732666345,-576.35,0.00028219,4]
[327973702,1716732666355,-500.0,0.00028219,4]
[327973703,1716732666364,-585.71,0.00028219,4]
[327973704,1716732666374,-606.32,0.00028219,4]
[327973705,1716732666383,-1027.88,0.00028219,4]
[327973706,1716732666393,-2390.71,0.00028219,4]
[327973707,1716732666402,-500.0,0.00028219,4]
[327973708,1716732666412,-720.94,0.00028219,4]
[327973709,1716732666421,-884.01,0.00028219,4]
[327973710,1716732666431,-151.0,0.00028219,7]
[327973711,1716732666440,-371.37065,0.00028219,7]
[327973712,1716732666449,-856.1063,0.00028219,7]
[327973713,1716732666463,-571.26,0.00028219,4]
[327973714,1716732666473,-1408.04,0.00028219,4]
[327973715,1716732666482,-371.37065,0.00028219,7]
[327973716,1716732666491,-500.0,0.00028219,4]
[327973717,1716732666500,-500.0,0.00028219,4]
[327973718,1716732666511,-500.0,0.00028219,4]
[327973719,1716732666520,-856.1063,0.00028219,7]
[327973720,1716732666530,-500.0,0.00028219,4]
[327973721,1716732666541,-1268.26,0.00028219,4]
[327973722,1716732666551,-1085.42,0.00028219,4]
[327973723,1716732666560,-8694.34,0.00028219,4]
[327973724,1716732666569,-500.0,0.00028219,4]
[327973725,1716732666578,-1268.05,0.00028219,4]
[327973726,1716732666587,-1448.06,0.00028219,4]
[327973727,1716732666597,-972.62,0.00028219,4]
[327973728,1716732666606,-500.0,0.00028219,4]
[327973729,1716732666615,-3904.28,0.00028219,4]
[327973730,1716732666624,-573.16,0.00028219,4]
[327973731,1716732666634,-914.87,0.00028219,4]
[327973732,1716732666643,-1089.59,0.00028219,4]
[327973733,1716732666653,-500.0,0.00028219,4]
[327973734,1716732666662,-500.0,0.00028219,4]
[327973735,1716732666672,-151.0,0.00028219,7]
[327973736,1716732666681,-885.34,0.00028219,4]
[327973737,1716732666691,-151.0,0.00028219,7]
[327973738,1716732666700,-500.0,0.00028219,4]
[327973739,1716732666709,-591.51,0.00028219,4]
[327973740,1716732666718,-500.0,0.00028219,4]
[327973741,1716732666728,-1079.94,0.00028219,4]
[327973742,1716732666737,-879.76,0.00028219,4]
[327973743,1716732666746,-1841.81,0.00028219,4]
[327973744,1716732666756,-500.0,0.00028219,4]
[327973745,1716732666765,-1638.97,0.00028219,4]
[327973746,1716732666775,-500.0,0.00028219,4]
[327973747,1716732666784,-585.58595083,0.00028219,4]
[327973748,1716732666793,-625.43,0.00028219,4]
[327973749,1716732666803,-1077.58,0.00028219,4]
[327973750,1716732666812,-500.0,0.00028219,4]
[327973751,1716732666821,-710.46,0.00028219,4]
[327973752,1716732666830,-647.72,0.00028219,4]
[327973753,1716732666839,-568.85,0.00028219,4]
[327973754,1716732666849,-678.18,0.00028219,4]
[327973755,1716732666858,-869.84,0.00028219,4]
[327973756,1716732666867,-500.0,0.00028219,4]
[327973757,1716732666877,-500.0,0.00028219,4]
[327973758,1716732666886,-717.42,0.00028219,4]
[327973759,1716732666895,-576.0,0.00028219,4]
[327973760,1716732666905,-1137.45,0.00028219,4]
[327973761,1716732666916,-500.0,0.00028219,4]
[327973762,1716732666925,-151.0,0.00028219,7]
[327973763,1716732666935,-500.0,0.00028219,4]
[327973764,1716732666944,-151.0,0.00028219,7]
[327973765,1716732666955,-500.0,0.00028219,4]
[327973766,1716732666966,-500.0,0.00028219,4]
[327973767,1716732666976,-500.0,0.00028219,4]
[327973768,1716732666985,-623.77,0.00028219,4]
[327973769,1716732666995,-1101.55,0.00028219,4]
[327973770,1716732667005,-504.89,0.00028219,4]
[327973771,1716732667016,-570.33,0.00028219,4]
[327973772,1716732667026,-853.64,0.00028219,4]
[327973773,1716732667036,-500.0,0.00028219,4]
[327973774,1716732667045,-1592.22,0.00028219,4]
[327973775,1716732667055,-500.0,0.00028219,4]
[327973776,1716732667064,-1027.97,0.00028219,4]
[327973777,1716732667073,-1044.37,0.00028219,4]
[327973778,1716732667083,-500.0,0.00028219,4]
[327973779,1716732667093,-500.0,0.00028219,4]
[327973780,1716732667102,-1313.69,0.00028219,4]
[327973781,1716732667112,-624.18,0.00028219,4]
[327973782,1716732667121,-500.0,0.00028219,4]
[327973783,1716732667130,-1190.26,0.00028219,4]
[327973784,1716732667140,-4137.91,0.00028219,4]
[327973785,1716732667149,-1036.79,0.00028219,4]
[327973786,1716732667158,-500.0,0.00028219,4]
[327973787,1716732667169,-850.51,0.00028219,4]
[327973788,1716732667179,-500.0,0.00028219,4]
[327973789,1716732667189,-916.61,0.00028219,4]
[327973790,1716732667198,-1474.98,0.00028219,4]
[327973791,1716732667208,-707.12,0.00028219,4]
[327973792,1716732667217,-500.0,0.00028219,4]
[327973793,1716732667226,-151.0,0.00028219,7]
[327973794,1716732667235,-500.0,0.00028219,4]
[327973795,1716732667244,-2412.83,0.00028219,4]
[327973796,1716732667253,-500.0,0.00028219,4]
[327973797,1716732667262,-500.0,0.00028219,4]
[327973798,1716732667272,-500.0,0.00028219,4]
[327973799,1716732667281,-687.58,0.00028219,4]
[327973800,1716732667291,-1038.84,0.00028219,4]
[327973801,1716732667300,-500.0,0.00028219,2]
[327973802,1716732667310,-500.0,0.00028219,4]
[327973803,1716732667319,-500.0,0.00028219,4]
[327973804,1716732667328,-654.73,0.00028219,4]
[327973805,1716732667338,-928.91,0.00028219,4]
[327973806,1716732667347,-500.0,0.00028219,4]
[327973807,1716732667356,-592.19,0.00028219,4]
[327973808,1716732667367,-502.52,0.00028219,4]
[327973809,1716732667377,-500.0,0.00028219,4]
[327973810,1716732667386,-500.0,0.00028219,4]
[327973811,1716732667395,-500.0,0.00028219,4]
[327973812,1716732667405,-1244.5,0.00028219,4]
[327973813,1716732667415,-827.03,0.00028219,4]
[327973814,1716732667425,-586.69,0.00028219,4]
[327973815,1716732667434,-901.87,0.00028219,4]
[327973816,1716732667443,-793.2,0.00028219,4]
[327973817,1716732667454,-501.48,0.00028219,4]
[327973818,1716732667469,-709.61,0.00028219,4]
[327973819,1716732667478,-500.0,0.00028219,4]
[327973820,1716732667487,-200.0,0.00028265,30]
[327973821,1716732667498,-153.93863298,0.00028284,2]
[327973822,1716732667507,-1000.0,0.000283,2]
[327973823,1716732667517,-551.197367,0.00028413,2]
[327973824,1716732667526,-420.524747,0.00028413,2]
[327973825,1716732667539,-236.330708,0.00028413,2]
[327973826,1716732667548,-1556.7999962,0.00028491,2]
[327973827,1716732667558,-500.0,0.00028493,4]
[327973828,1716732667568,-500.0,0.00028493,4]
[327973829,1716732667577,-500.0,0.00028493,4]
[327973830,1716732667586,-500.0,0.00028493,4]